bitfinex/quotes_SOLUSD_20241110
["timestamp","ask_amount","ask_price","bid_price","bid_amount"]
[1731279861180,43.5313914,209.55,209.41,50.6969914]
[1731279861181,38.7591914,209.49,209.41,50.6969914]
[1731279861468,43.5313914,209.55,209.41,50.6969914]
[1731279861469,38.7591914,209.47,209.41,11.9378]
[1731279861674,43.5313914,209.55,209.41,11.9378]
[1731279861675,38.7591914,209.49,209.41,50.6969914]
[1731279861882,38.7591914,209.53,209.45,38.7591914]
[1731279862059,38.7591914,209.55,209.47,38.7591914]
[1731279862452,38.7591914,209.53,209.45,38.7591914]
[1731279862673,38.7591914,209.53,209.47,4.7739]
[1731279863472,38.7591914,209.49,209.41,38.7591914]
[1731279863655,38.7591914,209.53,209.45,20.0]
[1731279864152,38.7591914,209.53,209.46,38.7591914]
[1731279864654,43.5317914,209.53,209.45,24.7742]
[1731279865052,43.5317914,209.53,209.44,50.6955914]
[1731279865053,38.7591914,209.51,209.44,50.6955914]
[1731279865280,38.7591914,209.47,209.39,19.087753]
[1731279865453,38.7591914,209.49,209.41,4.7751]
[1731279865656,38.7591914,209.49,209.42,38.7591914]
[1731279865863,38.7591914,209.49,209.41,4.7751]
[1731279866379,38.7591914,209.49,209.41,16.7134]
[1731279866582,38.7591914,209.45,209.39,19.087753]
[1731279866882,38.7591914,209.41,209.35,19.092599]
[1731279867174,38.7591914,209.4,209.34,4.7768]
[1731279867378,38.7591914,209.4,209.34,23.869399]
[1731279867682,38.7591914,209.42,209.34,62.6285904]
[1731279868171,38.7591914,209.46,209.39,20.0]
[1731279868380,38.7591914,209.46,209.38,38.7591914]
[1731279868682,43.5333914,209.46,209.38,43.5349914]
[1731279868974,38.7591914,209.44,209.38,16.7158]
[1731279869353,38.7591914,209.46,209.4,38.7591914]
[1731279869577,38.7591914,209.48,209.4,38.7591914]
[1731279869782,38.7591914,209.46,209.39,23.776884]
[1731279870076,38.7591914,209.49,209.41,23.776884]
[1731279870279,6.2681,209.51,209.37,19.090512]
[1731279870280,38.7591914,209.43,209.37,19.090512]
[1731279870574,38.7591914,209.41,209.35,48.553384]
[1731279870780,38.7591914,209.41,209.35,60.495084]
[1731279871076,38.7591914,209.43,209.35,60.495084]
[1731279871282,38.7591914,209.45,209.37,20.0]
[1731279871781,40.483184,209.5,209.37,20.0]
[1731279871782,38.7591914,209.43,209.37,20.0]
[1731279871962,38.7591914,209.41,209.36,20.0]
[1731279872379,38.7591914,209.41,209.35,23.776884]
[1731279872563,38.7591914,209.41,209.35,28.553484]
[1731279873764,38.7591914,209.45,209.37,23.776884]
[1731279874157,38.7591914,209.45,209.4,20.0]
[1731279874374,38.7591914,209.41,209.35,16.7183]
[1731279874598,38.7591914,209.41,209.36,23.776884]
[1731279875682,38.7591914,209.41,209.36,28.553084]
[1731279875893,38.7591914,209.41,209.36,4.7762]
[1731279876378,38.7591914,209.41,209.35,11.9417]
[1731279876583,38.7591914,209.37,209.3,38.7591914]
[1731279876767,38.7591914,209.37,209.32,4.7773]
[1731279876969,38.7591914,209.35,209.31,31.036912]
[1731279877467,38.7591914,209.35,209.31,11.944]
[1731279877879,38.7591914,209.37,209.31,11.944]
[1731279878272,4.7758,209.39,209.31,11.944]
[1731279878273,38.7591914,209.39,209.31,11.944]
[1731279879387,38.7591914,209.35,209.31,11.944]
[1731279880784,38.7591914,209.33,209.27,19.099117]
[1731279880970,38.7591914,209.33,209.26,11.9462]
[1731279881286,38.7591914,209.27,209.21,19.101958]
[1731279881471,38.8591914,209.33,209.14,38.7591914]
[1731279881472,38.7591914,209.23,209.14,38.7591914]
[1731279881680,38.7591914,209.23,209.16,38.7591914]
[1731279881992,38.7591914,209.33,209.16,38.7591914]
[1731279881993,38.7591914,209.25,209.16,38.7591914]
[1731279882366,38.7591914,209.25,209.18,38.7591914]
[1731279882872,38.7591914,209.27,209.19,16.7311]
[1731279883461,38.7591914,209.31,209.24,38.7591914]
[1731279883661,38.7591914,209.33,209.24,38.7591914]
[1731279883968,38.7591914,209.34,209.26,38.7591914]
[1731279884893,38.7591914,209.34,209.27,55.4838914]
[1731279885185,38.7591914,209.34,209.27,16.7247]
[1731279886889,38.7591914,209.34,209.27,55.4838914]
[1731279887072,38.7591914,209.34,209.27,16.7247]
[1731279888469,38.7591914,209.32,209.27,11.9462]
[1731279888668,38.7591914,209.33,209.27,16.7247]
[1731279889180,38.7591914,209.29,209.25,4.7788]
[1731279889368,38.7591914,209.33,209.26,38.7591914]
[1731279889578,38.7591914,209.33,209.25,55.4853914]
[1731279889784,38.7591914,209.34,209.27,38.7591914]
[1731279889983,38.7591914,209.35,209.28,38.7591914]
[1731279890490,10.9104,209.38,209.25,16.7262]
[1731279890491,38.7591914,209.34,209.27,38.7591914]
[1731279891382,38.7591914,209.36,209.29,38.7591914]
[1731279891589,38.7591914,209.34,209.28,16.7239]
[1731279892284,4.7753,209.41,209.3,38.7591914]
[1731279892487,38.7591914,209.37,209.3,38.7591914]
[1731279892667,38.7591914,209.4,209.33,38.7591914]
[1731279892993,38.7591914,209.38,209.33,23.776884]
[1731279893185,38.7591914,209.37,209.31,23.776884]
[1731279893579,38.7591914,209.37,209.32,16.7207]
[1731279893886,38.7591914,209.37,209.33,23.776884]
[1731279894086,38.7591914,209.39,209.33,23.776884]
[1731279894782,38.7591914,209.4,209.34,20.0]
[1731279895293,38.7591914,209.42,209.35,62.5360754]
[1731279895671,38.7591914,209.43,209.36,55.4766914]
[1731279895870,38.7591914,209.44,209.37,43.776884]
[1731279896093,38.7591914,209.45,209.38,38.7591914]
[1731279896281,4.7736,209.49,209.37,43.776884]
[1731279896282,38.7591914,209.44,209.39,23.776884]
[1731279896685,38.7591914,209.44,209.37,20.0]
[1731279896686,38.7591914,209.45,209.38,62.5360754]
[1731279896879,38.7591914,209.49,209.42,38.7591914]
[1731279897087,38.7591914,209.47,209.37,20.0]
[1731279897296,38.7591914,209.47,209.4,23.776884]
[1731279897590,38.7591914,209.47,209.41,20.0]
[1731279897786,38.7591914,209.47,209.42,28.551884]
[1731279897970,38.7591914,209.48,209.42,40.489584]
[1731279900273,38.7591914,209.53,209.45,38.7591914]
[1731279900471,38.7591914,209.53,209.46,23.776884]
[1731279900700,38.7591914,209.47,209.43,23.776884]
[1731279900872,38.7591914,209.46,209.42,11.9377]
[1731279901072,38.7591914,209.43,209.37,11.94]
[1731279901267,0.1,209.49,209.35,6.2324]
[1731279901268,38.7591914,209.39,209.35,22.9507]
[1731279901478,38.7591914,209.38,209.33,4.777]
[1731279901694,6.5977,209.47,209.33,4.777]
[1731279901695,38.7591914,209.41,209.33,43.5361914]
[1731279901891,38.7591914,209.42,209.35,38.7591914]
[1731279902102,38.7591914,209.44,209.36,38.7591914]
[1731279902408,38.7591914,209.42,209.36,16.7175]
[1731279903198,38.7591914,209.42,209.37,23.776884]
[1731279904290,38.7591914,209.38,209.32,15.0264]
[1731279904591,38.7591914,209.37,209.32,31.747]
[1731279905796,38.7591914,209.38,209.32,31.747]
[1731279906195,6.5977,209.47,209.33,43.776884]
[1731279906381,38.7591914,209.46,209.38,38.7591914]
[1731279906699,38.7591914,209.45,209.38,23.776884]
[1731279907371,38.7591914,209.46,209.39,38.7591914]
[1731279907581,10.8221,209.52,209.41,38.7591914]
[1731279907582,38.7591914,209.48,209.41,38.7591914]
[1731279907900,0.1,209.51,209.35,11.9413]
[1731279908073,0.1,209.46,209.35,11.9413]
[1731279909183,38.7591914,209.37,209.3,55.4814914]
[1731279909391,38.7591914,209.37,209.3,16.7223]
[1731279909903,38.7591914,209.37,209.31,23.776884]
[1731279910288,38.7591914,209.33,209.3,16.7223]
[1731279910680,38.7591914,209.34,209.3,16.7223]
[1731279910882,38.7591914,209.37,209.3,55.4814914]
[1731279911186,38.7591914,209.37,209.3,16.7223]
[1731279911695,38.7591914,209.37,209.31,23.776884]
[1731279912274,38.7591914,209.37,209.3,16.7223]
[1731279912275,38.7591914,209.35,209.3,28.554484]
[1731279912476,38.7591914,209.34,209.3,4.7776]
[1731279912695,38.7591914,209.36,209.3,4.7776]
[1731279913300,38.7591914,209.35,209.3,4.7776]
[1731279913504,38.7591914,209.33,209.29,11.9451]
[1731279913796,38.7591914,209.36,209.3,23.776884]
[1731279914001,38.7591914,209.38,209.3,62.5360754]
[1731279915883,38.7591914,209.38,209.31,16.7216]
[1731279916093,38.7591914,209.38,209.32,23.776884]
[1731279916682,3.0253848,209.46,209.31,16.7216]
[1731279916683,38.7591914,209.45,209.37,38.7591914]
[1731279916889,38.7591914,209.46,209.39,38.7591914]
[1731279917090,38.7591914,209.49,209.41,38.7591914]
[1731279917398,38.7591914,209.48,209.41,23.776884]
[1731279917878,38.7591914,209.47,209.41,23.776884]
[1731279918204,38.7591914,209.47,209.41,4.7751]
[1731279918791,38.7591914,209.5,209.42,62.5360754]
[1731279919081,38.7591914,209.53,209.47,23.776884]
[1731279919301,48.95841439,209.55,209.47,23.776884]
[1731279919487,38.7591914,209.48,209.42,23.776884]
[1731279919686,38.7591914,209.5,209.44,38.7591914]
[1731279919895,38.7591914,209.51,209.46,23.776884]
[1731279920096,38.7591914,209.52,209.46,28.550984]
[1731279920429,38.7591914,209.53,209.46,28.550984]
[1731279920601,38.7591914,209.53,209.47,20.0]
[1731279920785,38.7591914,209.55,209.48,23.776884]
[1731279920981,6.5916,209.61,209.48,62.5360754]
[1731279921193,38.7591914,209.56,209.5,23.776884]
[1731279921497,38.7591914,209.54,209.5,23.776884]
[1731279921703,38.7591914,209.54,209.48,23.776884]
[1731279921893,6.5916,209.61,209.48,23.776884]
[1731279921894,38.7591914,209.55,209.5,23.776884]
[1731279922099,38.7591914,209.59,209.53,23.776884]
[1731279922403,38.7591914,209.6,209.53,23.776884]
[1731279923207,38.7591914,209.61,209.55,23.776884]
[1731279923520,38.7591914,209.62,209.55,23.776884]
[1731279923801,38.7591914,209.65,209.57,38.7591914]
[1731279923998,38.7591914,209.66,209.58,62.5360754]
[1731279924309,38.7591914,209.67,209.6,23.776884]
[1731279924980,38.7591914,209.69,209.62,23.776884]
[1731279925191,38.7591914,209.74,209.67,38.7591914]
[1731279925411,38.7591914,209.72,209.64,23.776884]
[1731279925597,38.7591914,209.7,209.64,23.776884]
[1731279925902,38.7591914,209.77,209.65,20.0]
[1731279925903,38.7591914,209.71,209.65,20.0]
[1731279926112,38.7591914,209.73,209.66,23.776884]
[1731279926403,38.7591914,209.75,209.68,62.5360754]
[1731279926603,38.7591914,209.78,209.72,23.776884]
[1731279926806,38.7591914,209.79,209.72,62.5360754]
[1731279927190,38.7591914,209.79,209.72,28.544884]
[1731279927985,4.7659,209.83,209.76,62.5360754]
[1731279927986,38.7591914,209.83,209.76,62.5360754]
[1731279928307,15.1997,209.89,209.75,20.0]
[1731279928308,38.7591914,209.89,209.82,23.776884]
[1731279928485,38.7591914,209.91,209.84,23.776884]
[1731279928689,38.7591914,209.91,209.84,62.5360754]
[1731279929391,38.7591914,209.91,209.84,23.776884]
[1731279929588,38.7591914,209.85,209.8,23.776884]
[1731279929895,38.7591914,209.85,209.75,16.1068]
[1731279929896,38.7591914,209.81,209.75,16.1068]
[1731279930106,38.7591914,209.79,209.75,16.1068]
[1731279930300,38.7591914,209.8,209.75,16.1068]
[1731279930610,38.7591914,209.82,209.75,32.7931]
[1731279930914,38.7591914,209.87,209.8,38.7591914]
[1731279931206,38.7591914,209.87,209.81,4.7662]
[1731279931420,4.7638,209.92,209.81,4.7662]
[1731279931421,38.7591914,209.88,209.82,23.776884]
[1731279931589,38.7591914,209.86,209.82,23.776884]
[1731279932302,38.7591914,209.89,209.84,23.776884]
[1731279932495,38.7591914,209.88,209.84,23.776884]
[1731279933005,38.7591914,209.89,209.84,23.776884]
[1731279933207,38.7591914,209.9,209.84,23.776884]
[1731279934309,38.7591914,209.89,209.86,23.776884]
[1731279934613,19.45034734,209.96,209.84,23.776884]
[1731279934614,38.7591914,209.87,209.84,23.776884]
[1731279934791,19.45034734,209.96,209.84,23.776884]
[1731279935102,38.7591914,209.86,209.83,11.9144]
[1731279935490,38.7591914,209.87,209.84,23.776884]
[1731279935897,38.7591914,209.85,209.78,11.9172]
[1731279936093,38.7591914,209.86,209.82,23.776884]
[1731279936314,4.96849812,209.95,209.82,23.776884]
[1731279936315,38.7591914,209.88,209.82,23.776884]
[1731279936605,38.7591914,209.89,209.84,23.776884]
[1731279936814,38.7591914,209.9,209.84,23.776884]
[1731279937007,38.7591914,209.89,209.84,23.776884]
[1731279937393,38.7591914,209.88,209.84,23.776884]
[1731279938020,38.7591914,209.87,209.85,4.7653]
[1731279938198,38.7591914,209.86,209.84,23.776884]
[1731279938703,38.7591914,209.85,209.79,23.776884]
[1731279938904,38.7591914,209.83,209.79,23.776884]
[1731279939312,38.7591914,209.85,209.79,23.776884]
[1731279939694,38.7591914,209.85,209.8,16.6825]
[1731279940315,38.7591914,209.85,209.81,23.776884]
[1731279940497,38.7591914,209.84,209.81,23.776884]
[1731279941213,38.7591914,209.89,209.83,23.776884]
[1731279941398,38.7591914,209.86,209.83,23.776884]
[1731279941597,38.7591914,209.86,209.8,11.9161]
[1731279941800,38.7591914,209.85,209.83,23.776884]
[1731279942721,38.7591914,209.87,209.83,23.776884]
[1731279943033,38.7591914,209.92,209.85,23.776884]
[1731279943193,38.7591914,209.95,209.88,62.5360754]
[1731279943518,38.7591914,209.94,209.87,62.5360754]
[1731279943904,38.7591914,209.96,209.89,23.776884]
[1731279944223,38.7591914,209.99,209.92,20.0]
[1731279944423,38.7591914,209.93,209.86,54.0016914]
[1731279944714,12.002,210.05,209.87,43.776884]
[1731279944901,4.7609,210.04,209.89,43.776884]
[1731279945101,38.7591914,209.96,209.89,82.5360754]
[1731279945314,38.7591914,209.97,209.89,82.5360754]
[1731279945501,38.7591914,209.98,209.92,23.776884]
[1731279945700,38.7591914,209.98,209.94,23.776884]
[1731279946102,4.7609,210.04,209.94,23.776884]
[1731279946103,38.7591914,210.01,209.94,23.776884]
[1731279946302,38.7591914,210.0,209.94,23.776884]
[1731279946806,38.7591914,209.99,209.96,23.776884]
[1731279947000,38.7591914,210.0,209.96,23.776884]
[1731279947205,4.7603,210.07,209.96,23.776884]
[1731279947206,38.7591914,210.01,209.96,23.776884]
[1731279947507,38.7591914,210.02,209.96,23.776884]
[1731279948324,38.7591914,210.01,209.96,23.776884]
[1731279948624,38.7591914,210.06,210.0,23.776884]
[1731279948823,38.7591914,210.08,210.01,38.7591914]
[1731279949016,38.7591914,210.13,210.06,38.7591914]
[1731279949204,38.7591914,210.14,210.07,23.776884]
[1731279949518,38.7591914,210.16,210.09,38.7591914]
[1731279949729,38.7591914,210.16,210.1,23.776884]
[1731279950119,4.7574,210.2,210.1,23.776884]
[1731279950120,38.7591914,210.17,210.1,23.776884]
[1731279950323,38.7591914,210.16,210.09,20.0]
[1731279950821,38.7591914,210.16,210.1,28.536484]
[1731279951008,38.7591914,210.13,210.1,23.776884]
[1731279951198,38.7591914,210.15,210.08,23.776884]
[1731279951424,38.7591914,210.17,210.11,23.776884]
[1731279952523,38.7591914,210.17,210.13,23.776884]
[1731279952924,38.7591914,210.2,210.13,23.776884]
[1731279953135,38.7591914,210.18,210.13,23.776884]
[1731279953508,4.7567,210.23,210.13,23.776884]
[1731279953509,38.7591914,210.17,210.13,23.776884]
[1731279953705,38.7591914,210.16,210.12,11.8979]
[1731279953908,38.7591914,210.13,210.11,23.776884]
[1731279954208,38.7591914,210.21,210.11,23.776884]
[1731279954209,38.7591914,210.12,210.11,23.776884]
[1731279954422,38.7591914,210.12,210.07,17.9794]
[1731279954720,38.7591914,210.1,210.07,22.7396]
[1731279955437,38.7591914,210.11,210.07,22.7396]
[1731279955611,38.7591914,210.1,210.07,22.7396]
[1731279955806,38.7591914,210.09,210.07,22.7396]
[1731279956108,38.7591914,210.1,210.08,23.776884]
[1731279956311,4.7573,210.2,210.08,23.776884]
[1731279956312,38.7591914,210.15,210.08,23.776884]
[1731279956618,38.7591914,210.16,210.1,23.776884]
[1731279956810,4.7573,210.2,210.1,23.776884]
[1731279957014,38.7591914,210.17,210.1,23.776884]
[1731279957527,38.7591914,210.17,210.1,62.5360754]
[1731279957727,38.7591914,210.15,210.12,23.776884]
[1731279958111,38.7591914,210.16,210.12,23.776884]
[1731279958629,38.7591914,210.16,210.12,28.535884]
[1731279959337,38.7591914,210.16,210.12,40.433784]
[1731279960720,4.7574,210.2,210.12,40.433784]
[1731279961032,38.7591914,210.21,210.13,38.7591914]
[1731279961215,38.7591914,210.24,210.18,38.7591914]
[1731279961520,38.7591914,210.24,210.19,23.776884]
[1731279961727,38.7591914,210.27,210.21,23.776884]
[1731279961939,38.7591914,210.25,210.17,38.7591914]
[1731279962150,38.7591914,210.19,210.15,15.5817]
[1731279962516,4.7544,210.33,210.18,43.776884]
[1731279962740,38.7591914,210.32,210.24,38.7591914]
[1731279962929,38.7591914,210.34,210.26,38.7591914]
[1731279963228,38.7591914,210.34,210.27,23.776884]
[1731279963411,38.7591914,210.38,210.31,23.776884]
[1731279963610,38.7591914,210.44,210.35,23.776884]
[1731279963823,38.7591914,210.4,210.35,23.776884]
[1731279964026,38.7591914,210.4,210.33,23.776884]
[1731279964428,38.7591914,210.44,210.36,38.7591914]
[1731279964811,38.7591914,210.44,210.38,4.7533]
[1731279965016,38.7591914,210.44,210.39,23.776884]
[1731279965829,54.2148914,210.54,210.39,23.776884]
[1731279965830,38.7591914,210.46,210.39,23.776884]
[1731279966034,4.7504,210.51,210.38,55.3956914]
[1731279966035,38.7591914,210.48,210.41,23.776884]
[1731279966541,38.7591914,210.52,210.41,23.776884]
[1731279966836,38.7591914,210.54,210.47,28.528084]
[1731279967012,38.7591914,210.58,210.51,23.776884]
[1731279967337,38.7591914,210.56,210.51,23.776884]
[1731279967525,38.7591914,210.58,210.5,38.7591914]
[1731279967838,38.7591914,210.58,210.51,23.776884]
[1731279969123,38.7591914,210.62,210.55,23.776884]
[1731279969330,6.3098,210.72,210.55,23.776884]
[1731279969331,38.7591914,210.6,210.55,23.776884]
[1731279969735,38.7591914,210.6,210.54,23.776884]
[1731279970336,38.7591914,210.62,210.54,23.776884]
[1731279970947,38.7591914,210.62,210.56,23.776884]
[1731279971439,38.7591914,210.64,210.56,62.5360754]
[1731279971645,38.7591914,210.62,210.56,23.776884]
[1731279972820,38.7591914,210.62,210.56,40.398984]
[1731279973024,38.7591914,210.64,210.56,79.1581754]
[1731279973234,38.7591914,210.66,210.58,38.7591914]
[1731279973437,24.746,210.71,210.56,40.398984]
[1731279973438,38.7591914,210.64,210.56,79.1581754]
[1731279973943,38.7591914,210.6,210.56,40.398984]
[1731279974244,38.7591914,210.62,210.56,40.398984]
[1731279975339,38.7591914,210.64,210.58,23.776884]
[1731279975735,38.7591914,210.64,210.6,23.776884]
[1731279976143,38.7591914,210.68,210.62,23.776884]
[1731279976441,38.7591914,210.7,210.66,23.776884]
[1731279977029,38.7591914,210.68,210.66,23.776884]
[1731279977232,38.7591914,210.68,210.64,23.776884]
[1731279977428,38.7591914,210.66,210.58,36.6206]
[1731279977744,4.7452,210.74,210.58,20.0]
[1731279977745,38.7591914,210.59,210.58,20.0]
[1731279977937,38.7591914,210.59,210.56,21.0749]
[1731279978231,38.7591914,210.57,210.53,6.5533]
[1731279978444,38.7591914,210.55,210.53,6.5533]
[1731279979162,38.7591914,210.55,210.53,11.303]
[1731279979333,38.7591914,210.65,210.53,11.303]
[1731279979334,38.7591914,210.57,210.54,23.776884]
[1731279979527,38.7591914,210.55,210.54,23.776884]
[1731279980243,38.7591914,210.55,210.54,43.776884]
[1731279980478,38.7591914,210.55,210.51,4.7502]
[1731279980628,38.7591914,210.53,210.51,4.7502]
[1731279981956,38.7591914,210.55,210.52,23.776884]
[1731279982857,38.7591914,210.6,210.54,23.776884]
[1731279983040,38.7591914,210.62,210.57,20.0]
[1731279983352,38.7591914,210.64,210.58,23.776884]
[1731279984034,38.7591914,210.6,210.45,23.8579]
[1731279984236,38.7591914,210.51,210.5,20.0]
[1731279984436,38.7591914,210.51,210.48,4.7509]
[1731279984644,38.7591914,210.54,210.47,11.878]
[1731279984645,38.7591914,210.49,210.47,11.878]
[1731279984859,38.7591914,210.49,210.42,11.8809]
[1731279985139,38.7591914,210.43,210.36,16.6378]
[1731279985348,38.7591914,210.41,210.36,16.6378]
[1731279985953,38.7591914,210.43,210.36,55.3969914]
[1731279986158,38.7591914,210.42,210.36,16.6378]
[1731279986461,38.7591914,210.4,210.36,16.6378]
[1731279986629,38.7591914,210.38,210.36,16.6378]
[1731279986826,38.7591914,210.38,210.33,6.5833]
[1731279986827,38.7591914,210.38,210.34,4.7542]
[1731279987029,38.7591914,210.36,210.32,4.7546]
[1731279987240,38.7591914,210.36,210.32,16.6412]
[1731279987440,38.7591914,210.38,210.32,16.6412]
[1731279987753,38.7591914,210.4,210.32,55.4003914]
[1731279987984,38.7591914,210.42,210.35,20.0]
[1731279988458,38.7591914,210.46,210.39,20.0]
[1731279988835,38.7591914,210.47,210.42,28.529184]
[1731279989953,6.5624,210.56,210.41,23.776884]
[1731279989954,38.7591914,210.44,210.41,23.776884]
[1731279990131,38.7591914,210.45,210.41,23.776884]
[1731279990447,38.7591914,210.47,210.41,23.776884]
[1731279990956,38.7591914,210.42,210.32,0.1]
[1731279991146,38.7591914,210.34,210.33,4.7542]
[1731279991937,38.7591914,210.34,210.3,11.8876]
[1731279992146,6.2903,210.44,210.3,11.8876]
[1731279992342,38.7591914,210.36,210.3,11.8876]
[1731279992543,38.7591914,210.34,210.3,11.8876]
[1731279993234,38.7591914,210.36,210.31,20.0]
[1731279993430,38.7591914,210.38,210.31,20.0]
[1731279994159,38.7591914,210.42,210.35,38.7591914]
[1731279994340,6.2903,210.5,210.32,40.5144]
[1731279994341,38.7591914,210.44,210.38,43.776884]
[1731279995438,38.7591914,210.42,210.38,43.776884]
[1731279995662,38.7591914,210.4,210.34,20.0]
[1731279996150,77.5183828,210.35,210.26,11.8895]
[1731279996331,77.5183828,210.35,210.2,23.7867]
[1731279996332,38.7591914,210.27,210.23,4.7565]
[1731279996536,38.7591914,210.25,210.21,16.6496]
[1731279996754,38.7591914,210.29,210.21,55.4087914]
[1731279996940,38.7591914,210.31,210.23,38.7591914]
[1731279997133,38.7591914,210.33,210.23,38.7591914]
[1731279997331,38.7591914,210.35,210.27,38.7591914]
[1731279997535,38.7591914,210.37,210.27,45.3719914]
[1731279997947,38.7591914,210.37,210.28,43.776884]
[1731279998155,38.7591914,210.35,210.3,43.776884]
[1731279998354,38.7591914,210.37,210.3,43.776884]
[1731279999059,38.7591914,210.39,210.32,43.776884]
[1731280000042,38.7591914,210.39,210.33,16.6404]
[1731280000244,38.7591914,210.39,210.34,23.776884]
[1731280000440,38.7591914,210.35,210.33,11.886]
[1731280001049,38.7591914,210.35,210.31,4.7548]
[1731280001552,38.7591914,210.33,210.28,11.8885]
[1731280001761,38.7591914,210.3,210.24,20.6194]
[1731280001939,38.7591914,210.28,210.24,32.5105]
[1731280002142,38.7591914,210.28,210.22,6.2644]
[1731280002143,38.7591914,210.26,210.22,6.2644]
[1731280002455,38.7591914,210.24,210.22,22.9134]
[1731280002649,38.7591914,210.24,210.22,18.1567]
[1731280002855,38.7591914,210.24,210.18,15.8316]
[1731280003056,38.7591914,210.2,210.17,18.1591]
[1731280003258,38.7591914,210.18,210.12,27.7292]
[1731280003474,38.7591914,210.14,210.12,11.8976]
[1731280003645,38.7591914,210.14,210.12,16.6567]
[1731280004146,38.7591914,210.18,210.12,16.6567]
[1731280004762,38.7591914,210.16,210.13,20.0]
[1731280005137,38.7591914,210.14,210.12,11.8976]
[1731280005336,38.7591914,210.18,210.12,16.6567]
[1731280005536,38.7591914,210.14,210.12,16.6567]
[1731280005763,38.7591914,210.14,210.1,4.7595]
[1731280005947,38.7591914,210.11,210.1,4.7595]
[1731280006151,38.7591914,210.11,210.07,16.661]
[1731280006565,4.7577,210.19,210.07,16.661]
[1731280006566,38.7591914,210.13,210.07,16.661]
[1731280006981,38.7591914,210.13,210.08,20.0]
[1731280007140,38.7591914,210.13,210.09,40.436284]
[1731280007454,38.7591914,210.11,210.09,11.8996]
[1731280007869,38.7591914,210.13,210.09,16.6594]
[1731280008363,38.7591914,210.21,210.09,16.6594]
[1731280008364,38.7591914,210.15,210.09,16.6594]
[1731280009266,38.7591914,210.11,210.07,20.0]
[1731280009457,38.7591914,210.09,210.07,20.0]
[1731280009783,38.7591914,210.09,210.03,11.9027]
[1731280010064,38.7591914,210.09,210.03,16.6637]
[1731280011280,38.7591914,210.09,210.05,20.0]
[1731280011566,38.7591914,210.07,210.03,16.6637]
[1731280011750,38.7591914,210.07,210.03,11.9027]
[1731280011955,38.7591914,210.05,209.98,12.73258346]
[1731280012172,38.7591914,210.0,209.98,0.82708346]
[1731280012473,38.7591914,210.0,209.94,4.7631]
[1731280012655,38.7591914,209.98,209.94,4.7631]
[1731280012852,38.7591914,209.98,209.91,39.58625031]
[1731280013062,38.7591914,209.98,209.93,11.9086]
[1731280013751,38.7591914,210.0,209.93,11.9086]
[1731280014069,38.7591914,210.04,209.96,38.7591914]
[1731280014362,38.7591914,210.08,210.0,38.7591914]
[1731280015066,38.7591914,210.08,210.01,23.776884]
[1731280015253,38.7591914,210.08,210.01,28.538384]
[1731280015450,38.7591914,210.08,210.01,23.776884]
[1731280015648,43.5193914,210.08,210.01,23.776884]
[1731280016361,38.7591914,210.06,209.99,23.776884]
[1731280016562,38.7591914,210.04,209.99,23.776884]
[1731280016759,38.7591914,210.04,209.98,11.9053]
[1731280016962,38.7591914,210.02,209.98,11.9053]
[1731280017166,38.7591914,210.0,209.95,20.0]
[1731280017353,38.7591914,210.0,209.92,38.7591914]
[1731280017561,38.7591914,209.98,209.91,4.7638]
[1731280017761,38.7591914,209.98,209.91,16.6736]
[1731280017986,38.7591914,210.02,209.92,38.7591914]
[1731280018169,38.7591914,210.02,209.94,38.7591914]
[1731280019159,38.7591914,210.02,209.94,55.4302914]
[1731280019667,38.7591914,210.05,209.95,23.776884]
[1731280019873,38.7591914,210.01,209.95,23.776884]
[1731280020048,38.7591914,210.01,209.94,11.9081]
[1731280020254,38.7591914,209.99,209.94,11.9081]
[1731280020455,38.7591914,210.01,209.94,11.9081]
[1731280020666,38.7591914,210.03,209.96,38.7591914]
[1731280020978,38.7591914,210.05,209.97,23.776884]
[1731280021170,38.7591914,209.99,209.92,43.5226914]
[1731280021471,38.7591914,209.94,209.84,55.4381914]
[1731280021659,38.7591914,209.9,209.84,16.679]
[1731280022155,38.7591914,209.9,209.84,55.4381914]
[1731280022775,38.7591914,209.92,209.84,55.4381914]
[1731280024065,38.7591914,209.94,209.86,43.5241914]
[1731280024571,38.7591914,209.94,209.87,23.776884]
[1731280026175,38.7591914,209.92,209.86,11.9127]
[1731280026477,38.7591914,209.92,209.84,43.5244914]
[1731280026668,38.7591914,209.88,209.81,12.74276589]